bitfinex/quotes_SOLUSD_20240821
["timestamp","ask_amount","ask_price","bid_price","bid_amount"]
[1724257941634,7.1084,140.68,140.64,7.1103]
[1724257941833,7.1083,140.69,140.65,7.1097]
[1724257942059,7.1074,140.7,140.66,7.1093]
[1724257942369,7.1078,140.69,140.65,7.1096]
[1724257943040,7.1087,140.68,140.64,24.8858]
[1724257944132,17.7684,140.7,140.61,17.7791]
[1724257944327,7.1101,140.65,140.61,17.7791]
[1724257944941,7.1101,140.65,140.61,24.8908]
[1724257948047,20.0,140.67,140.62,7.1113]
[1724257948231,15.6816,140.72,140.63,17.7765]
[1724257948431,7.1081,140.69,140.65,7.1096]
[1724257948626,7.1074,140.7,140.66,7.1092]
[1724257949042,7.1074,140.7,140.66,8.53089357]
[1724257949244,7.1074,140.7,140.66,7.1092]
[1724257949741,7.1069,140.71,140.67,7.1087]
[1724257950262,39.6308,140.76,140.66,7.1091]
[1724257950263,7.1073,140.7,140.66,7.1091]
[1724257951535,29.2793898,140.76,140.67,17.7714]
[1724257951740,7.105,140.75,140.7,7.107]
[1724257952040,29.19299321,140.8,140.71,35.07003427]
[1724257952255,29.19299321,140.8,140.71,33.6489]
[1724257952567,22.2948,140.8,140.71,33.6489]
[1724257953344,45.0,140.79,140.71,33.6489]
[1724257953852,7.1038,140.77,140.72,7.1062]
[1724257954261,7.1043,140.76,140.71,33.6489]
[1724257954573,7.1048,140.75,140.71,33.6489]
[1724257954933,7.1053,140.74,140.7,6.0266]
[1724257955272,7.1059,140.73,140.68,40.9194]
[1724257955566,7.1053,140.74,140.69,7.1078]
[1724257955763,7.1047,140.76,140.71,7.1067]
[1724257955947,20.0,140.75,140.71,7.1067]
[1724257956275,27.1048,140.75,140.71,7.1067]
[1724257956766,20.0,140.75,140.71,7.1067]
[1724257956970,7.1039,140.77,140.72,7.1061]
[1724257959338,7.1029,140.79,140.74,7.1048]
[1724257959578,7.1029,140.79,140.75,1.29737301]
[1724257959579,20.0,140.78,140.75,1.29737301]
[1724257959741,7.1029,140.79,140.74,7.1048]
[1724257959948,7.1034,140.78,140.73,23.3328]
[1724257960967,7.1046,140.76,140.72,17.7651]
[1724257961146,8.63601415,140.76,140.72,17.7651]
[1724257961349,7.1046,140.76,140.72,17.7651]
[1724257962672,17.7563,140.8,140.73,7.1054]
[1724257963178,7.1039,140.77,140.73,7.1054]
[1724257963748,7.1039,140.77,140.72,24.8712]
[1724257964270,17.7563,140.8,140.72,17.7651]
[1724257964271,7.1044,140.76,140.72,17.7651]
[1724257966376,17.7586,140.78,140.69,33.996]
[1724257966561,7.1058,140.73,140.69,33.996]
[1724257966762,7.1058,140.73,140.69,41.1037]
[1724257967361,7.1058,140.73,140.69,33.996]
[1724257968075,7.1063,140.72,140.69,16.2272]
[1724257971881,7.1068,140.71,140.69,16.2272]
[1724257972773,7.1068,140.71,140.67,7.1087]
[1724257975485,7.1068,140.71,140.66,24.8816]
[1724257975787,7.1073,140.7,140.66,24.8816]
[1724257977076,7.1069,140.71,140.66,24.8816]
[1724257977659,7.1075,140.7,140.66,24.8816]
[1724257979009,7.1083,140.68,140.65,21.363]
[1724257979297,7.1092,140.67,140.63,17.7769]
[1724257979582,7.1092,140.67,140.63,24.8876]
[1724257981196,34.2691,140.72,140.64,7.1103]
[1724257981407,7.108,140.69,140.64,7.1103]
[1724257981578,7.1074,140.7,140.65,7.1096]
[1724257981772,7.1078,140.69,140.65,7.1096]
[1724257982694,7.1083,140.68,140.63,24.8876]
[1724257983277,1.53141415,140.67,140.61,16.1649]
[1724257983479,7.1099,140.65,140.61,16.1649]
[1724257984872,7.1094,140.66,140.61,23.2767]
[1724257985071,31.3787,140.7,140.62,17.7782]
[1724257985290,7.1087,140.68,140.63,7.1108]
[1724257985599,20.0,140.67,140.63,7.1108]
[1724257985801,7.1087,140.68,140.63,7.1108]
[1724257986366,7.1071,140.71,140.64,1.42187869]
[1724257986596,7.1071,140.71,140.66,24.8823]
[1724257987167,2.68961595,140.75,140.63,24.8866]
[1724257987168,7.1087,140.68,140.63,24.8866]
[1724257987372,7.108,140.69,140.64,7.1103]
[1724257987898,7.1083,140.68,140.64,7.1103]
[1724257988069,7.1083,140.68,140.63,24.8868]
[1724257988776,17.7687,140.7,140.62,13.5309]
[1724257988988,7.1089,140.67,140.62,13.5309]
[1724257989371,1.53141415,140.66,140.58,22.6778]
[1724257989706,7.1112,140.63,140.58,22.6778]
[1724257990009,7.1112,140.63,140.58,16.127]
[1724257990382,7.1112,140.63,140.58,23.2402]
[1724257990701,7.1103,140.65,140.59,7.1127]
[1724257991195,7.1104,140.64,140.59,7.1128]
[1724257994512,20.0,140.68,140.58,16.127]
[1724257994675,7.1094,140.66,140.61,7.1117]
[1724257995189,20.0,140.65,140.61,7.1117]
[1724257995985,7.1088,140.67,140.62,7.1112]
[1724257996185,25.17909681,140.73,140.63,1.35513869]
[1724257996809,25.17909681,140.73,140.63,7.1107]
[1724257997499,45.0,140.7,140.63,7.1107]
[1724257997912,7.1088,140.67,140.63,7.1107]
[1724257998222,7.1083,140.68,140.63,7.1107]
[1724257998786,7.1083,140.68,140.62,17.7777]
[1724257998787,25.17909681,140.73,140.64,33.0157]
[1724257998988,17.7652,140.73,140.64,33.0157]
[1724257999187,17.7652,140.73,140.65,0.48061966]
[1724257999403,7.1074,140.7,140.65,7.1094]
[1724258000192,7.1069,140.71,140.66,7.89317753]
[1724258000699,7.1069,140.71,140.66,7.1092]
[1724258004105,7.1063,140.72,140.66,17.7723]
[1724258004304,7.1059,140.73,140.68,7.1082]
[1724258004501,7.1059,140.73,140.68,17.7703]
[1724258005321,15.8167,140.77,140.68,17.7703]
[1724258005499,7.1051,140.75,140.7,7.1072]
[1724258007506,7.1053,140.74,140.7,22.1825]
[1724258007713,7.1053,140.74,140.7,15.0753]
[1724258008097,7.1049,140.75,140.7,22.1825]
[1724258010315,7.1042,140.77,140.71,6.2154]
[1724258010650,7.1042,140.77,140.72,7.1059]
[1724258011017,7.1034,140.78,140.73,7.1057]
[1724258011341,7.1034,140.78,140.73,8.52591344]
[1724258011641,7.1034,140.78,140.74,1.42088029]
[1724258011846,7.1038,140.77,140.74,1.42088029]
[1724258012154,7.1038,140.77,140.72,24.8717]
[1724258013010,19.28751415,140.8,140.71,6.2154]
[1724258013219,65.0,140.79,140.71,6.2154]
[1724258014842,7.1041,140.77,140.72,7.1063]
[1724258015435,7.1043,140.76,140.71,31.0886]
[1724258015615,7.1038,140.77,140.71,31.0886]
[1724258017640,8.63571415,140.76,140.71,23.982]
[1724258017838,7.105,140.75,140.71,6.2154]
[1724258019216,7.1044,140.76,140.71,6.2154]
[1724258019525,7.1044,140.76,140.71,13.3221]
[1724258019734,7.1027,140.79,140.71,6.2154]
[1724258019934,7.1027,140.79,140.73,7.1056]
[1724258020128,7.1027,140.79,140.74,1.42070271]
[1724258020438,7.1033,140.78,140.73,7.1056]
[1724258020615,7.1033,140.78,140.73,8.52630693]
[1724258020819,7.1033,140.78,140.73,7.1056]
[1724258021050,7.1033,140.78,140.73,8.52633266]
[1724258021221,7.1033,140.78,140.73,7.1056]
[1724258021838,7.1033,140.78,140.72,24.8713]
[1724258023253,20.0,140.77,140.72,24.8713]
[1724258023924,20.0,140.77,140.72,17.7652]
[1724258024128,7.1028,140.79,140.73,7.1057]
[1724258024437,20.0,140.78,140.74,15.8965]
[1724258024957,27.1028,140.79,140.74,15.8965]
[1724258027353,20.0,140.79,140.74,15.8965]
[1724258027530,0.8415702,140.81,140.74,15.8965]
[1724258027729,7.1031,140.79,140.74,15.8965]
[1724258028256,20.0,140.78,140.74,15.8965]
[1724258029078,20.0,140.78,140.75,1.42067061]
[1724258030755,20.0,140.78,140.74,15.8965]
[1724258031054,20.0,140.8,140.74,15.8965]
[1724258031362,20.0,140.8,140.74,17.31714312]
[1724258031657,20.8415702,140.81,140.74,15.8965]
[1724258031857,7.1028,140.79,140.74,15.8965]
[1724258032041,20.0,140.78,140.74,15.8965]
[1724258032429,20.0,140.78,140.74,23.0016]
[1724258032772,20.0,140.79,140.74,23.0016]
[1724258033360,20.0,140.79,140.75,7.1046]
[1724258033687,20.0,140.8,140.75,7.1046]
[1724258033859,20.0,140.8,140.75,8.52515137]
[1724258034248,20.0,140.8,140.76,6.0015]
[1724258036482,27.1023,140.8,140.76,6.0015]
[1724258037561,7.1028,140.79,140.76,6.0015]
[1724258037757,27.1024,140.8,140.76,6.0015]
[1724258040052,20.0,140.8,140.76,6.0015]
[1724258040267,27.1022,140.8,140.76,6.0015]
[1724258043466,7.1028,140.79,140.76,3.8565]
[1724258043674,7.1028,140.79,140.74,33.6593]
[1724258044071,7.1041,140.77,140.74,13.7515]
[1724258044259,7.1041,140.77,140.74,7.3165]
[1724258044454,7.1041,140.77,140.74,0.8815]
[1724258044689,7.1041,140.77,140.71,26.65115822]
[1724258044956,7.1041,140.77,140.71,24.8723]
[1724258046619,7.1034,140.78,140.72,7.1062]
[1724258046771,27.1038,140.77,140.71,31.3766]
[1724258047088,7.1038,140.77,140.71,31.3766]
[1724258047290,7.1034,140.78,140.72,7.1062]
[1724258047459,20.0,140.8,140.73,7.1057]
[1724258047460,20.0,140.77,140.73,7.1057]
[1724258047659,20.0,140.77,140.74,15.1344]
[1724258047909,20.0,140.77,140.74,22.2396]
[1724258048115,0.8415702,140.81,140.74,15.1344]
[1724258049126,0.8415702,140.81,140.75,1.42002914]
[1724258049610,0.8415702,140.81,140.76,7.1042]
[1724258049812,20.8415702,140.81,140.76,7.1042]
[1724258050415,20.8415702,140.81,140.77,7.1034]
[1724258050722,20.8415702,140.81,140.78,7.1032]
[1724258050723,0.8415702,140.81,140.78,7.1032]
[1724258051419,0.8415702,140.81,140.78,8.52259407]
[1724258052223,0.8415702,140.81,140.78,7.103]
[1724258053415,0.8415702,140.81,140.77,24.8627]
[1724258053618,0.8415702,140.81,140.76,6.0072]
[1724258054107,20.8415702,140.81,140.76,6.0072]
[1724258054501,27.9434702,140.81,140.76,6.0072]
[1724258056027,0.8415702,140.81,140.76,23.7667]
[1724258056920,0.8415702,140.81,140.77,7.1033]
[1724258057628,0.8415702,140.81,140.78,17.7574]
[1724258057812,0.8415702,140.81,140.79,15.6554]
[1724258058013,0.8415702,140.81,140.8,1.41967055]
[1724258058219,0.8415702,140.81,140.79,15.6554]
[1724258058412,0.8415702,140.81,140.8,14.90896949]
[1724258060439,0.8415702,140.81,140.8,13.489]
[1724258060734,0.8415702,140.81,140.8,13.73998]
[1724258061610,0.8415702,140.81,140.8,13.489]
[1724258066239,0.8415702,140.81,140.8,13.73998]
[1724258073049,0.8415702,140.81,140.8,13.489]
[1724258073738,0.8415702,140.81,140.8,13.73998]
[1724258074544,0.8415702,140.81,140.8,15.15974391]
[1724258075134,0.8415702,140.81,140.8,13.73998]
[1724258075844,0.8415702,140.81,140.8,15.15974589]
[1724258076045,0.8415702,140.81,140.8,13.73998]
[1724258076745,0.8415702,140.81,140.8,7.1022]
[1724258077335,0.8415702,140.81,140.78,17.7574]
[1724258077336,0.8415702,140.81,140.78,24.8605]
[1724258078130,0.8415702,140.81,140.78,17.7574]
[1724258078934,0.8415702,140.81,140.79,0.25098]
[1724258079542,0.8415702,140.81,140.8,7.1022]
[1724258079960,0.8415702,140.81,140.79,7.1026]
[1724258081541,0.8415702,140.81,140.78,24.8605]
[1724258082048,0.8415702,140.81,140.79,7.1027]
[1724258088658,0.8415702,140.81,140.8,7.35318]
[1724258089565,0.8415702,140.81,140.8,7.1022]
[1724258090361,0.8415702,140.81,140.8,7.22769]
[1724258090677,0.8415702,140.81,140.8,7.35318]
[1724258092448,0.8415702,140.81,140.8,7.1022]
[1724258093452,0.8415702,140.81,140.8,7.35318]
[1724258094944,0.8415702,140.81,140.8,7.1022]
[1724258095661,0.8415702,140.81,140.8,7.35318]
[1724258095866,0.8415702,140.81,140.8,7.1022]
[1724258097244,0.8415702,140.81,140.8,7.35318]
[1724258099748,0.8415702,140.81,140.8,52.35318]
[1724258100145,0.8415702,140.81,140.8,56.58433135]
[1724258100576,0.8415702,140.81,140.8,11.58433135]
[1724258106784,0.8415702,140.81,140.8,27.03293135]
[1724258107359,0.8415702,140.81,140.8,72.03293135]
[1724258107977,0.8415702,140.81,140.8,27.03293135]
[1724258108189,0.8415702,140.81,140.8,11.45884135]
[1724258108570,0.8415702,140.81,140.8,4.23115135]
[1724258109088,0.8415702,140.81,140.78,7.1032]
[1724258109256,0.8415702,140.81,140.77,24.8624]
[1724258109786,0.8415702,140.81,140.78,4.22767521]
[1724258109967,0.8415702,140.81,140.77,24.8624]
[1724258110282,0.8415702,140.81,140.74,17.7631]
[1724258110283,23.1337702,140.81,140.74,17.7631]
[1724258110484,23.1337702,140.81,140.75,4.23016786]
[1724258110665,23.1337702,140.81,140.75,7.1047]
[1724258110666,20.0,140.8,140.75,7.1047]
[1724258110868,0.8415702,140.81,140.8,7.1022]
[1724258111756,0.8415702,140.81,140.8,4.22602516]
[1724258111957,0.8415702,140.81,140.79,24.8586]
[1724258112374,0.8415702,140.81,140.8,7.1022]
[1724258112560,0.8415702,140.81,140.8,7.35318]
[1724258112887,0.8415702,140.81,140.8,11.57913617]
[1724258113261,0.8415702,140.81,140.8,7.35318]
[1724258113769,0.8415702,140.81,140.8,11.57910216]
[1724258114779,0.8415702,140.81,140.8,11.32812216]
[1724258114958,0.8415702,140.81,140.8,7.1022]
[1724258115959,0.8415702,140.81,140.79,17.756]
[1724258116858,0.8415702,140.81,140.8,7.1022]
[1724258117082,0.8415702,140.81,140.8,8.52227974]
[1724258117253,0.8415702,140.81,140.8,7.1022]
[1724258118078,0.8415702,140.81,140.79,24.8586]
[1724258118388,0.8415702,140.81,140.76,17.76]
[1724258118595,0.8415702,140.81,140.77,4.22959541]
[1724258118784,0.8415702,140.81,140.76,17.76]
[1724258118987,0.8415702,140.81,140.77,4.22944848]
[1724258119288,0.8415702,140.81,140.77,7.1036]
[1724258119488,0.8415702,140.81,140.78,7.1032]
[1724258120294,0.8415702,140.81,140.8,7.1022]
[1724258121168,0.8415702,140.81,140.79,7.1026]
[1724258122491,0.8415702,140.81,140.8,7.1022]
[1724258123079,0.8415702,140.81,140.8,11.33166203]
[1724258123290,0.8415702,140.81,140.8,7.1022]
[1724258123466,0.8415702,140.81,140.8,11.3315484]
[1724258125399,0.8415702,140.81,140.8,7.1022]
[1724258131103,0.8415702,140.81,140.79,7.1026]
[1724258131315,0.8415702,140.81,140.75,17.761]
[1724258131606,7.9432702,140.81,140.76,4.2334134]
[1724258131913,7.1034,140.78,140.72,17.7654]
[1724258132084,1.53141415,140.77,140.73,4.23584885]
[1724258132415,1.53141415,140.77,140.72,17.7654]
[1724258132586,28.63521415,140.77,140.72,17.7654]
[1724258132902,28.63521415,140.77,140.71,7.1064]
[1724258133101,20.0,140.77,140.72,7.106]
[1724258133315,27.1037,140.78,140.71,24.873]
[1724258133486,45.0,140.77,140.71,24.873]
[1724258133686,45.0,140.77,140.71,29.11098723]
[1724258134017,27.1037,140.78,140.72,7.1062]
[1724258135509,7.104,140.77,140.71,17.7664]
[1724258135710,7.104,140.77,140.71,24.8728]
[1724258136205,27.1034,140.78,140.72,7.1063]
[1724258137489,7.1038,140.77,140.71,24.873]
[1724258137805,8.63521415,140.77,140.71,24.873]
[1724258140106,8.63521415,140.77,140.71,17.7664]
[1724258140107,7.1043,140.76,140.71,17.7664]
[1724258140295,21.53141415,140.75,140.68,17.7703]
[1724258140479,1.53141415,140.77,140.68,17.7703]
[1724258140686,1.53141415,140.76,140.68,17.7703]
[1724258140885,7.1048,140.75,140.69,7.1074]
[1724258141314,8.63621415,140.75,140.69,7.1074]
[1724258141617,20.0,140.74,140.65,17.7736]
[1724258141812,7.1068,140.71,140.65,24.8833]
[1724258141985,1.53141415,140.7,140.65,24.8833]
[1724258142188,21.53141415,140.7,140.65,24.8833]
[1724258142488,20.0,140.7,140.65,24.8833]
[1724258142693,7.1063,140.72,140.66,7.1092]
[1724258142896,7.1062,140.73,140.67,7.1087]
[1724258143213,20.0,140.72,140.67,7.1087]
[1724258144909,20.0,140.72,140.65,17.7736]
[1724258144910,20.0,140.72,140.68,7.1082]
[1724258145119,20.0,140.73,140.68,7.1082]
[1724258145282,20.0,140.73,140.69,1.41928706]
[1724258145486,20.0,140.73,140.68,7.1082]
[1724258146402,20.0,140.73,140.67,17.7716]
[1724258146720,20.0,140.73,140.69,7.1077]
[1724258147005,27.1053,140.74,140.68,7.1082]
[1724258148219,46.53141415,140.73,140.67,17.7716]
[1724258148391,46.53141415,140.73,140.63,15.9566]
[1724258148392,27.1066,140.72,140.66,7.1091]
[1724258148592,1.53141415,140.71,140.66,7.1091]
[1724258150220,27.1066,140.72,140.66,7.1091]
[1724258152512,7.1068,140.71,140.66,7.1091]
[1724258152689,27.1064,140.72,140.66,7.1091]
[1724258153018,20.0,140.72,140.67,7.1087]
[1724258153894,7.1068,140.71,140.66,17.7729]
[1724258154309,21.53141415,140.7,140.65,7.1094]
[1724258155892,20.0,140.7,140.65,7.1094]
[1724258156527,27.1074,140.7,140.64,7.1101]
[1724258157822,27.1074,140.7,140.65,7.1097]
[1724258158418,20.0,140.7,140.65,7.1097]
[1724258158801,20.0,140.7,140.66,7.1092]
[1724258159006,7.1066,140.72,140.66,7.1092]
[1724258159311,65.0,140.71,140.66,7.1092]
[1724258160222,15.1176,140.75,140.67,17.7718]
[1724258160411,7.1058,140.73,140.67,24.8804]
[1724258161104,7.1063,140.72,140.67,24.8804]
[1724258162202,45.0,140.71,140.67,24.8804]
[1724258163095,52.1069,140.71,140.64,17.7747]
[1724258163301,45.0,140.71,140.66,7.1092]
[1724258163816,7.1064,140.72,140.66,7.1092]
[1724258163994,20.0,140.71,140.66,7.1092]
[1724258164399,20.0,140.71,140.67,7.1088]
[1724258164628,20.0,140.71,140.68,7.1079]
[1724258164807,20.0,140.74,140.64,35.5502]
[1724258165120,20.0,140.74,140.65,18.26460854]
[1724258165318,20.0,140.74,140.69,7.1077]
[1724258166098,20.0,140.74,140.67,17.771]
[1724258166099,15.1176,140.75,140.67,35.5416]
[1724258166320,22.3392,140.78,140.72,7.1062]
[1724258166500,7.1043,140.76,140.71,17.7665]
[1724258167209,15.2355,140.78,140.71,17.7665]
[1724258167422,22.3391,140.78,140.72,7.1062]
[1724258167729,20.0,140.77,140.72,7.1062]
[1724258168608,15.2355,140.78,140.73,1.42097916]
[1724258168811,15.2355,140.78,140.71,17.7665]
[1724258169126,6.0405,140.8,140.71,17.7665]
[1724258169314,13.1427,140.8,140.74,7.1052]
[1724258170008,20.0,140.79,140.74,7.1052]
[1724258170722,16.2899702,140.81,140.73,17.7641]
[1724258170907,23.3916702,140.81,140.75,7.1043]
[1724258171106,16.2899702,140.81,140.76,7.1042]
[1724258171547,23.3916702,140.81,140.75,7.1046]
[1724258171705,8.63381415,140.8,140.74,7.1052]
[1724258171906,7.1024,140.8,140.74,7.1052]
[1724258172308,20.0,140.79,140.74,7.1052]
[1724258172619,20.0,140.79,140.73,24.8697]
[1724258172826,27.1024,140.8,140.73,24.8697]
[1724258173018,20.0,140.8,140.73,17.7641]
[1724258173222,20.0,140.8,140.75,7.1043]
[1724258176134,23.3916702,140.81,140.75,7.1043]
[1724258176429,23.3916702,140.81,140.76,7.1042]
[1724258176619,20.0,140.8,140.76,7.1042]
[1724258176818,23.3916702,140.81,140.76,7.1042]
[1724258177130,16.2899702,140.81,140.77,7.1037]
[1724258177313,16.2899702,140.81,140.76,7.1041]
[1724258177819,23.3917702,140.81,140.76,7.1041]
[1724258178005,23.3917702,140.81,140.75,17.7611]
[1724258178205,23.3917702,140.81,140.75,24.8657]
[1724258179128,23.3917702,140.81,140.75,17.7611]
[1724258179129,72.1023,140.8,140.75,17.7611]
[1724258179345,7.1028,140.79,140.73,7.1056]
[1724258179509,27.1032,140.78,140.72,24.8708]
[1724258179714,20.0,140.77,140.72,24.8708]
[1724258180032,1.53141415,140.76,140.69,17.7686]
[1724258180232,52.1044,140.76,140.7,7.1069]
[1724258180446,52.1044,140.76,140.69,17.7686]
[1724258180739,45.0,140.76,140.71,7.1067]
[1724258181326,1.53141415,140.75,140.68,11.34480594]
[1724258181640,7.1054,140.74,140.68,7.1083]
[1724258181936,21.53141415,140.73,140.68,7.1083]
[1724258182115,20.0,140.73,140.68,7.1083]
[1724258183232,20.0,140.73,140.69,7.1077]
[1724258183432,7.1048,140.75,140.69,7.1077]
[1724258183433,20.0,140.74,140.69,7.1077]
[1724258184245,27.1053,140.74,140.68,7.1082]
[1724258184619,20.0,140.74,140.69,7.1078]
[1724258186241,16.0532,140.76,140.69,17.7687]
[1724258186429,20.0,140.75,140.69,17.7687]
[1724258186633,20.0,140.75,140.71,7.1066]
[1724258188333,1.53141415,140.74,140.69,17.7687]
[1724258188513,27.1051,140.75,140.69,24.8764]
[1724258189221,52.1053,140.74,140.69,17.7687]
[1724258190022,52.1053,140.74,140.69,24.8764]
[1724258190334,52.1053,140.74,140.69,17.7687]
[1724258190745,27.1048,140.75,140.69,24.8764]
[1724258191517,20.0,140.75,140.69,17.7687]
[1724258191717,16.0532,140.76,140.7,1.42111497]
[1724258191941,16.0532,140.76,140.71,7.1064]
[1724258192128,23.1575,140.76,140.71,7.1064]
[1724258192536,23.1575,140.76,140.69,24.8763]
[1724258192537,8.63631415,140.75,140.69,24.8763]
[1724258192920,7.1053,140.74,140.69,17.7687]
[1724258193319,45.0,140.73,140.67,7.1086]
[1724258193560,52.1061,140.73,140.67,7.1086]
[1724258193722,20.0,140.72,140.67,7.1086]
[1724258195119,1.53141415,140.71,140.66,17.7724]
[1724258195326,8.63851415,140.71,140.66,17.7724]
[1724258196453,46.53141415,140.7,140.66,17.7724]
[1724258196658,52.1073,140.7,140.65,7.1094]
[1724258196834,52.1073,140.7,140.64,7.1102]
[1724258198127,7.1079,140.69,140.63,24.8871]
[1724258198332,1.53141415,140.68,140.63,24.8871]
[1724258199063,53.64001415,140.68,140.63,17.7763]
[1724258199353,1.53141415,140.67,140.63,17.7763]
[1724258199561,27.1079,140.69,140.63,24.8871]
[1724258200059,23.4709,140.71,140.66,7.1092]
[1724258201565,16.364,140.71,140.66,7.1092]
[1724258201857,15.4328,140.75,140.67,17.7714]
[1724258202068,7.1053,140.74,140.68,7.108]
[1724258205248,20.0,140.74,140.69,24.8768]
[1724258205749,15.4328,140.75,140.72,7.1063]
[1724258205968,20.0,140.74,140.71,24.8733]
[1724258206159,20.0,140.75,140.71,24.8733]
[1724258206863,22.2504,140.78,140.72,8.52730643]
[1724258207035,22.2504,140.78,140.73,1.42097218]
[1724258207362,15.1471,140.78,140.73,8.52677218]
[1724258207738,15.1471,140.78,140.73,7.1058]
[1724258208350,20.0,140.77,140.73,7.1058]
[1724258209144,20.0,140.78,140.73,7.1058]
[1724258210050,27.1033,140.78,140.72,7.1061]
[1724258210570,1.53141415,140.77,140.72,7.1061]
[1724258212665,7.1038,140.77,140.71,17.7667]
[1724258212869,21.53141415,140.76,140.68,17.7698]
[1724258213070,20.0,140.76,140.7,17.7678]
[1724258213671,20.0,140.76,140.71,7.1066]
[1724258219142,20.0,140.76,140.7,17.7678]
[1724258219143,7.1029,140.79,140.73,7.1054]
[1724258219345,45.0,140.78,140.73,8.52630851]
[1724258219551,45.0,140.78,140.73,7.1054]
[1724258221452,1.53141415,140.77,140.67,51.69979]
[1724258221668,7.1041,140.77,140.68,20.25098]
[1724258221871,45.0,140.78,140.68,20.25098]
[1724258221872,52.1034,140.78,140.72,7.1062]
[1724258225378,45.0,140.78,140.73,7.1057]
[1724258225566,45.0,140.78,140.73,8.52661799]
[1724258225759,52.1032,140.78,140.72,24.8714]
[1724258226173,20.0,140.77,140.72,24.8714]
[1724258227155,20.0,140.77,140.73,1.42098811]
[1724258227452,20.0,140.79,140.73,1.42098811]
[1724258227886,20.0,140.79,140.74,7.1052]
[1724258228088,27.1027,140.79,140.74,7.1052]
[1724258228587,27.1027,140.79,140.74,8.52605019]
[1724258228788,27.1027,140.79,140.74,7.1052]
[1724258228967,20.0,140.79,140.74,7.1052]
[1724258229162,16.1463702,140.81,140.76,7.1039]
[1724258229367,23.2480702,140.81,140.75,7.1046]
[1724258230586,20.0,140.8,140.75,7.1046]
[1724258233111,20.0,140.8,140.76,7.1042]
[1724258234575,20.0,140.8,140.74,17.7629]
[1724258235085,20.0,140.8,140.76,7.1042]
[1724258235383,20.0,140.8,140.77,7.1037]
[1724258235614,20.0,140.8,140.77,8.52429152]
[1724258235770,0.8415702,140.81,140.78,7.103]
[1724258235973,0.8415702,140.81,140.79,8.52235009]
[1724258236203,0.8415702,140.81,140.8,8.52181042]
[1724258236391,0.8415702,140.81,140.8,7.1022]
[1724258236591,0.8415702,140.81,140.8,8.52228309]
[1724258237980,0.8415702,140.81,140.8,7.1022]
[1724258247007,0.8415702,140.81,140.79,7.1026]
[1724258248008,0.8415702,140.81,140.78,24.8608]
[1724258248212,0.8415702,140.81,140.78,17.7577]
[1724258249908,0.8415702,140.81,140.79,7.1026]
[1724258250704,0.8415702,140.81,140.78,24.8608]
[1724258251909,0.8415702,140.81,140.8,7.1022]
[1724258252286,0.8415702,140.81,140.8,23.53659]
[1724258252485,0.8415702,140.81,140.8,23.66208]
[1724258252704,0.8415702,140.81,140.8,88.66208]
[1724258254922,0.8415702,140.81,140.8,94.73318]
[1724258263198,0.8415702,140.81,140.8,95.63014899]
[1724258263400,0.8415702,140.81,140.8,94.73318]
[1724258263598,0.8415702,140.81,140.8,96.15286561]
[1724258263916,0.8415702,140.81,140.8,106.13389607]
[1724258264117,0.8415702,140.81,140.8,104.71422252]
[1724258265794,0.8415702,140.81,140.8,94.73318]
[1724258269206,0.8415702,140.81,140.8,27.35318]
[1724258269419,0.8415702,140.81,140.8,27.1022]
[1724258269593,0.8415702,140.81,140.8,7.1022]
[1724258270115,0.8415702,140.81,140.78,7.1031]
[1724258270697,0.8415702,140.81,140.79,7.1026]
[1724258273026,0.8415702,140.81,140.8,7.1022]
[1724258276316,0.8415702,140.81,140.79,17.7563]
[1724258276317,0.8415702,140.81,140.79,24.8589]